bitfinex/quotes_BTCUSD_20250809
["timestamp","ask_amount","ask_price","bid_price","bid_amount"]
[1754720252376,0.29970326,116660.0,116650.0,0.5182731]
[1754720252633,0.30467326,116660.0,116650.0,0.5182731]
[1754720255795,0.14360004,116660.0,116650.0,0.5182731]
[1754720256003,0.3150384,116660.0,116650.0,0.5182731]
[1754720257550,0.13502813,116660.0,116650.0,0.5182731]
[1754720257968,0.30646649,116660.0,116650.0,0.5182731]
[1754720261221,0.30646649,116660.0,116650.0,0.20076517]
[1754720261551,0.30646649,116660.0,116650.0,0.5182731]
[1754720262404,0.30646649,116660.0,116650.0,0.34682004]
[1754720263409,0.30646649,116660.0,116650.0,0.02931211]
[1754720263600,0.30646649,116660.0,116650.0,0.34682004]
[1754720264152,0.30646649,116660.0,116650.0,0.02931211]
[1754720264376,0.30646649,116660.0,116650.0,0.34682004]
[1754720266824,0.30646649,116660.0,116650.0,0.02931211]
[1754720267085,0.30646649,116660.0,116650.0,0.34682004]
[1754720267959,0.30646649,116660.0,116650.0,0.02931211]
[1754720268199,0.30646649,116660.0,116650.0,0.34682004]
[1754720269377,0.30646649,116660.0,116650.0,0.5182731]
[1754720270060,0.30646649,116660.0,116650.0,0.20076517]
[1754720270326,0.30646649,116660.0,116650.0,0.5182731]
[1754720270763,0.30646649,116660.0,116650.0,0.20076517]
[1754720270978,0.30646649,116660.0,116650.0,0.5182731]
[1754720272530,0.28901747,116660.0,116650.0,0.5182731]
[1754720273404,0.28404747,116660.0,116650.0,0.5182731]
[1754720273842,0.025747,116660.0,116650.0,0.83578103]
[1754720274066,0.025747,116660.0,116650.0,0.5182731]
[1754720274286,0.025747,116660.0,116650.0,0.83578103]
[1754720274516,0.19194274,116670.0,116660.0,0.17143836]
[1754720274744,0.30662985,116670.0,116660.0,1.03028847]
[1754720275823,0.30662985,116670.0,116660.0,1.03041034]
[1754720276213,0.30662985,116670.0,116660.0,1.03141034]
[1754720276411,0.11775711,116670.0,116660.0,1.03141034]
[1754720276663,0.13520613,116670.0,116660.0,1.03141034]
[1754720277251,0.04834402,116670.0,116660.0,1.03241034]
[1754720277885,0.030895,116670.0,116660.0,1.03241034]
[1754720278108,0.00307,116670.0,116660.0,1.03241034]
[1754720279687,0.29571806,116680.0,116670.0,0.17142367]
[1754720279914,0.29779806,116680.0,116670.0,0.50944848]
[1754720281687,0.29779806,116680.0,116670.0,0.02051688]
[1754720281893,0.29779806,116680.0,116670.0,0.33802481]
[1754720282558,0.22832044,116680.0,116670.0,0.33802481]
[1754720283708,0.22832044,116680.0,116670.0,0.50944848]
[1754720286001,0.22832044,116680.0,116670.0,0.19194055]
[1754720286276,0.22832044,116680.0,116670.0,0.50944848]
[1754720286692,0.22832044,116680.0,116670.0,0.33802481]
[1754720287491,0.22832044,116680.0,116670.0,0.02051688]
[1754720287690,0.22832044,116680.0,116670.0,0.33802481]
[1754720290555,0.22832044,116680.0,116670.0,0.50944848]
[1754720291791,0.04834102,116680.0,116670.0,0.51144848]
[1754720292006,0.030892,116680.0,116670.0,0.51144848]
[1754720292208,0.18308625,116690.0,116670.0,0.51144848]
[1754720292411,0.28739738,116690.0,116680.0,0.45430793]
[1754720292613,0.31521738,116690.0,116680.0,0.51913278]
[1754720293203,0.31521738,116690.0,116680.0,0.20162485]
[1754720293410,0.31521738,116690.0,116680.0,0.51913278]
[1754720294898,0.31521738,116690.0,116680.0,0.20162485]
[1754720295114,0.31521738,116690.0,116680.0,0.51913278]
[1754720296146,0.31313738,116690.0,116680.0,0.51913278]
[1754720296358,0.31313738,116690.0,116680.0,1.00804969]
[1754720296868,0.31313738,116690.0,116680.0,0.69054176]
[1754720297078,0.31521738,116690.0,116680.0,0.69054176]
[1754720297300,0.31521738,116690.0,116680.0,1.00804969]
[1754720297522,0.31521738,116690.0,116680.0,0.69054176]
[1754720298203,0.02574,116690.0,116680.0,1.00804969]
[1754720298653,0.02881,116690.0,116680.0,1.00804969]
[1754720299329,0.02881,116690.0,116680.0,1.00904969]
[1754720299552,0.02881,116690.0,116680.0,1.01004969]
[1754720300003,0.02881,116690.0,116680.0,0.37503383]
[1754720300243,0.02881,116690.0,116680.0,1.01004969]
[1754720300423,0.19196664,116700.0,116690.0,0.17139429]
[1754720300680,0.21978364,116700.0,116690.0,0.51087162]
[1754720301346,0.21978364,116700.0,116690.0,0.19336369]
[1754720301790,0.21978364,116700.0,116690.0,0.51087162]
[1754720302747,0.21978364,116700.0,116690.0,0.19336369]
[1754720302972,0.21978364,116700.0,116690.0,0.51087162]
[1754720304521,0.20233462,116700.0,116690.0,0.51087162]
[1754720304989,0.030887,116700.0,116690.0,0.51087162]
[1754720305224,0.030887,116700.0,116690.0,0.19336369]
[1754720305451,0.2022666,116700.0,116690.0,0.51087162]
[1754720305884,0.028807,116700.0,116690.0,0.51087162]
[1754720306134,0.025737,116700.0,116690.0,0.51087162]
[1754720306359,0.028817,116700.0,116690.0,0.51087162]
[1754720307094,0.18003473,116710.0,116700.0,0.1713796]
[1754720307095,0.18311473,116710.0,116700.0,0.1713796]
[1754720307314,0.21087873,116710.0,116700.0,0.64818665]
[1754720307535,0.21087873,116710.0,116700.0,0.64604441]
[1754720307773,0.21087873,116710.0,116700.0,0.32853648]
[1754720308001,0.21087873,116710.0,116700.0,0.64604441]
[1754720308453,0.21087873,116710.0,116700.0,0.65451814]
[1754720308963,0.21187873,116710.0,116700.0,0.65451814]
[1754720310957,0.20984873,116710.0,116700.0,0.65451814]
[1754720311620,0.19809892,116710.0,116700.0,0.65451814]
[1754720311792,0.026734,116710.0,116700.0,0.33701021]
[1754720312033,0.001,116710.0,116700.0,0.97202607]
[1754720312301,0.001,116710.0,116700.0,0.65451814]
[1754720312516,0.22627567,116720.0,116700.0,0.65451814]
[1754720312750,0.22627567,116720.0,116710.0,0.31750793]
[1754720312989,0.22830567,116720.0,116710.0,0.5536977]
[1754720313241,0.22830567,116720.0,116710.0,0.06482485]
[1754720313491,0.22830567,116720.0,116710.0,0.38233278]
[1754720314928,0.22830567,116720.0,116710.0,0.06482485]
[1754720316012,0.22830567,116720.0,116710.0,0.23618977]
[1754720323267,0.20257167,116720.0,116710.0,0.23618977]
[1754720331752,0.02255902,116720.0,116710.0,0.65922145]
[1754720331983,0.02052902,116720.0,116710.0,0.23618977]
[1754720332516,0.02267902,116720.0,116710.0,0.23618977]
[1754720333352,0.02267902,116720.0,116710.0,0.65922145]
[1754720333782,0.02267902,116720.0,116710.0,0.66022145]
[1754720333990,0.02267902,116720.0,116710.0,0.66122145]
[1754720334624,0.02267902,116720.0,116710.0,0.66022145]
[1754720335029,0.02267902,116720.0,116710.0,0.66122145]
[1754720335232,0.02267902,116720.0,116710.0,0.23818977]
[1754720335964,0.00523,116720.0,116710.0,0.23818977]
[1754720336842,0.00308,116720.0,116710.0,0.55545104]
[1754720337055,0.00308,116720.0,116710.0,0.23818977]
[1754720337232,0.00308,116720.0,116710.0,0.55545104]
[1754720338315,0.00308,116720.0,116710.0,0.23818977]
[1754720338733,0.00308,116720.0,116710.0,0.55545104]
[1754720339374,0.00523,116720.0,116710.0,0.55545104]
[1754720340475,0.00523,116720.0,116710.0,0.23818977]
[1754720340652,0.00523,116720.0,116710.0,0.55545104]
[1754720342747,0.00523,116720.0,116710.0,0.23818977]
[1754720343171,0.00523,116720.0,116710.0,0.55545104]
[1754720344469,0.00523,116720.0,116710.0,0.23818977]
[1754720344921,0.00523,116720.0,116710.0,0.55545104]
[1754720345460,0.00523,116720.0,116710.0,0.55717104]
[1754720346127,0.00523,116720.0,116710.0,0.23990977]
[1754720346284,0.00523,116720.0,116710.0,0.55717104]
[1754720346934,0.17658023,116720.0,116710.0,0.55717104]
[1754720355408,0.17658023,116720.0,116710.0,0.23990977]
[1754720355670,0.17658023,116720.0,116710.0,0.55717104]
[1754720355875,0.00523,116720.0,116710.0,0.55717104]
[1754720356085,0.00308,116720.0,116710.0,0.55717104]
[1754720356836,0.00308,116720.0,116710.0,0.23990977]
[1754720357043,0.17443023,116720.0,116710.0,0.55717104]
[1754720357245,0.17443023,116720.0,116710.0,0.23990977]
[1754720357454,0.00308,116720.0,116710.0,0.55717104]
[1754720358264,0.51753722,116730.0,116710.0,0.55717104]
[1754720358468,0.30472863,116730.0,116720.0,0.1362]
[1754720358668,0.6241399,116730.0,116720.0,0.1581694]
[1754720360189,0.30687863,116730.0,116720.0,0.1581694]
[1754720360334,0.6241399,116730.0,116720.0,0.1581694]
[1754720362480,0.30687863,116730.0,116720.0,0.1581694]
[1754720362685,0.6241399,116730.0,116720.0,0.1581694]
[1754720362887,0.49409677,116730.0,116720.0,0.1581694]
[1754720363015,0.49409677,116730.0,116720.0,0.16031127]
[1754720363238,0.1768355,116730.0,116720.0,0.16031127]
[1754720363442,0.49409677,116730.0,116720.0,0.16031127]
[1754720367239,0.1768355,116730.0,116720.0,0.16031127]
[1754720367461,0.49409677,116730.0,116720.0,0.16031127]
[1754720368087,0.1768355,116730.0,116720.0,0.16031127]
[1754720368296,0.1746855,116730.0,116720.0,0.16031127]
[1754720368520,0.49194677,116730.0,116720.0,0.16031127]
[1754720368728,0.49399677,116730.0,116720.0,0.16031127]
[1754720369144,0.1767355,116730.0,116720.0,0.16031127]
[1754720369526,0.49399677,116730.0,116720.0,0.16031127]
[1754720370005,0.49399677,116730.0,116720.0,0.3316615]
[1754720370238,0.49399677,116730.0,116720.0,0.32951963]
[1754720370454,0.1767355,116730.0,116720.0,0.32951963]
[1754720371003,0.49399677,116730.0,116720.0,0.32951963]
[1754720372044,0.1767355,116730.0,116720.0,0.32951963]
[1754720372253,0.00533155,116730.0,116720.0,0.32951963]
[1754720374773,0.17666711,116730.0,116720.0,0.32951963]
[1754720375241,0.49392838,116730.0,116720.0,0.32951963]
[1754720375795,0.17666711,116730.0,116720.0,0.32951963]
[1754720383782,0.20239711,116730.0,116720.0,0.32951963]
[1754720384978,0.94123078,116730.0,116720.0,0.13604]
[1754720385175,0.62396951,116730.0,116720.0,0.13604]
[1754720385381,0.94123078,116730.0,116720.0,0.13604]
[1754720386322,0.62396951,116730.0,116720.0,0.13604]
[1754720395013,0.30670824,116730.0,116720.0,0.13604]
[1754720395213,0.62396951,116730.0,116720.0,0.15629849]
[1754720397615,0.62396951,116730.0,116720.0,0.13604]
[1754720398203,0.30670824,116730.0,116720.0,0.13604]
[1754720398398,0.62396951,116730.0,116720.0,0.13604]
[1754720400903,0.30670824,116730.0,116720.0,0.13604]
[1754720401175,0.62396951,116730.0,116720.0,0.13604]
[1754720401379,0.62396951,116730.0,116720.0,0.17852628]
[1754720402183,0.30670824,116730.0,116720.0,0.17852628]
[1754720402387,0.62396951,116730.0,116720.0,0.17852628]
[1754720402557,0.30670824,116730.0,116720.0,0.17852628]
[1754720402772,0.30670824,116730.0,116720.0,0.66713778]
[1754720402993,0.30151824,116730.0,116720.0,0.66713778]
[1754720403198,0.21465613,116730.0,116720.0,0.66713778]
[1754720403403,0.21465613,116730.0,116720.0,0.34987651]
[1754720403662,0.04332057,116730.0,116720.0,0.66713778]
[1754720404285,0.04332057,116730.0,116720.0,0.34987651]
[1754720404510,0.04332057,116730.0,116720.0,0.66713778]
[1754720405862,0.04332057,116730.0,116720.0,0.34987651]
[1754720406064,0.02587155,116730.0,116720.0,0.66713778]
[1754720406469,0.02587155,116730.0,116720.0,0.34987651]
[1754720406745,0.02587155,116730.0,116720.0,0.66713778]
[1754720407186,0.02587155,116730.0,116720.0,0.34987651]
[1754720407385,0.02587155,116730.0,116720.0,0.66713778]
[1754720407821,0.00014155,116730.0,116720.0,0.66713778]
[1754720408035,0.02587155,116730.0,116720.0,0.66713778]
[1754720408247,0.02587155,116730.0,116720.0,0.98439905]
[1754720409346,0.17147711,116730.0,116720.0,0.34987651]
[1754720409560,0.17147711,116730.0,116720.0,0.98439905]
[1754720409773,0.17147711,116730.0,116720.0,0.98539905]
[1754720410217,0.17147711,116730.0,116720.0,0.98439905]
[1754720410423,0.17147711,116730.0,116720.0,0.98539905]
[1754720410652,0.17147711,116730.0,116720.0,0.98639905]
[1754720410873,0.17147711,116730.0,116720.0,0.18052628]
[1754720411098,0.17147711,116730.0,116720.0,0.81504882]
[1754720411528,0.17147711,116730.0,116720.0,0.49778755]
[1754720412185,0.17443711,116730.0,116720.0,0.49778755]
[1754720413073,0.17443711,116730.0,116720.0,0.18052628]
[1754720413297,0.49367838,116730.0,116720.0,0.13804]
[1754720413514,0.20214711,116730.0,116720.0,0.13804]
[1754720413725,0.51940838,116730.0,116720.0,0.13804]
[1754720413941,0.20214711,116730.0,116720.0,0.13804]
[1754720414154,0.5368574,116730.0,116720.0,0.13804]
[1754720414374,0.62371951,116730.0,116720.0,0.13804]
[1754720414595,0.30645824,116730.0,116720.0,0.18374213]
[1754720414820,0.30645824,116730.0,116720.0,0.5010034]
[1754720415024,0.30645824,116730.0,116720.0,0.18374213]
[1754720416090,0.62371951,116730.0,116720.0,0.18374213]
[1754720417452,0.30645824,116730.0,116720.0,0.18374213]
[1754720418947,0.30645824,116730.0,116720.0,0.5010034]
[1754720419163,0.30645824,116730.0,116720.0,0.18374213]
[1754720419371,0.30645824,116730.0,116720.0,0.13804]
[1754720419575,0.62371951,116730.0,116720.0,0.13804]
[1754720419761,0.30645824,116730.0,116720.0,0.13804]
[1754720420214,0.30645824,116730.0,116720.0,0.45530127]
[1754720420422,0.02587155,116730.0,116720.0,0.94391277]
[1754720420533,0.00014155,116730.0,116720.0,1.4348304]
[1754720420755,0.00014155,116730.0,116720.0,1.5426483]
[1754720421173,0.00014155,116730.0,116720.0,1.25111103]
[1754720421608,0.00014155,116730.0,116720.0,1.25011103]
[1754720422021,0.00014155,116730.0,116720.0,0.61958849]
[1754720422217,0.00014155,116730.0,116720.0,1.25411103]
[1754720422630,0.00014155,116730.0,116720.0,1.46510513]
[1754720424060,0.00014155,116730.0,116720.0,1.46410513]
[1754720424278,0.00014155,116730.0,116720.0,1.46710513]
[1754720425749,0.00014155,116730.0,116720.0,1.04434681]
[1754720428779,0.00014155,116730.0,116720.0,1.46710513]
[1754720431893,0.00014155,116730.0,116720.0,1.80710513]
[1754720434299,0.00014155,116730.0,116720.0,0.96158849]
[1754720434523,0.00014155,116730.0,116720.0,1.80710513]
[1754720438204,0.0002,116760.0,116750.0,0.1713062]
[1754720438444,0.0002,116760.0,116750.0,0.83716351]
[1754720438445,0.00067358,116760.0,116750.0,0.83716351]
[1754720438655,0.00361358,116760.0,116750.0,0.83716351]
[1754720438869,0.00361358,116760.0,116750.0,0.52222309]
[1754720439091,0.00361358,116760.0,116750.0,0.94498141]
[1754720439518,0.00361358,116760.0,116750.0,0.83816351]
[1754720439726,0.00361358,116760.0,116750.0,0.84116351]
[1754720440012,0.00361358,116760.0,116750.0,0.86688151]
[1754720440745,0.00361358,116760.0,116750.0,0.86588151]
[1754720441153,0.00361358,116760.0,116750.0,0.86788151]
[1754720441524,0.0002,116780.0,116770.0,0.17127686]
[1754720441719,0.00536202,116780.0,116770.0,0.72418288]
[1754720441928,0.00536202,116780.0,116770.0,0.86006288]
[1754720442158,0.00536202,116780.0,116770.0,0.88577588]
[1754720442717,0.00536202,116780.0,116770.0,0.88777588]
[1754720443136,0.00536202,116780.0,116770.0,0.88577588]
[1754720443336,0.00536202,116780.0,116770.0,0.88580065]
[1754720443543,0.00536202,116780.0,116770.0,0.88680065]
[1754720444194,0.00536202,116780.0,116770.0,0.88980065]
[1754720444902,0.00536202,116780.0,116770.0,0.88680065]
[1754720445129,0.00536202,116780.0,116770.0,0.88880065]
[1754720446297,0.00328202,116780.0,116770.0,0.88880065]
[1754720447618,0.00328202,116780.0,116770.0,0.46604233]
[1754720447855,0.00328202,116780.0,116770.0,0.88880065]
[1754720448108,0.00034202,116780.0,116770.0,0.89719651]
[1754720448357,0.00034202,116780.0,116770.0,4.71975855]
[1754720448584,0.00034202,116780.0,116770.0,2.29121623]
[1754720449287,0.00034202,116780.0,116770.0,2.20091623]
[1754720451498,0.00034202,116780.0,116770.0,2.98867455]
[1754720451924,0.00034202,116780.0,116770.0,2.56591623]
[1754720452153,0.00324,116810.0,116800.0,1.01674951]
[1754720452384,0.00324,116810.0,116800.0,0.86032196]
[1754720452385,0.00531,116810.0,116800.0,0.86032196]
[1754720453568,0.00531,116810.0,116800.0,1.28408028]
[1754720453784,0.00531,116810.0,116800.0,0.86132196]
[1754720454480,0.00531,116810.0,116800.0,1.28408028]
[1754720454911,0.00531,116810.0,116800.0,0.86132196]
[1754720460186,0.00531,116810.0,116800.0,0.43856364]
[1754720460421,0.00531,116810.0,116800.0,0.86132196]
[1754720462079,0.00531,116810.0,116800.0,0.72536196]
[1754720462315,0.00531,116810.0,116800.0,0.35182153]
[1754720462316,0.17652821,116810.0,116800.0,0.35182153]
[1754720463725,0.17652821,116810.0,116800.0,0.35082153]
[1754720464675,0.17652821,116810.0,116800.0,0.77357985]
[1754720464932,0.17652821,116810.0,116800.0,0.04350866]
[1754720465160,0.17124123,116800.0,116780.0,0.17980167]
[1754720465380,0.17331753,116790.0,116780.0,0.17980167]
[1754720465607,0.17635753,116790.0,116780.0,0.60255999]
[1754720465818,0.17635753,116790.0,116780.0,0.17980167]
[1754720466061,0.17635753,116790.0,116780.0,0.80270553]
[1754720466951,0.17635753,116790.0,116780.0,0.37994721]
[1754720467402,0.17428753,116790.0,116780.0,0.80270553]
[1754720467618,0.17635753,116790.0,116780.0,0.80270553]
[1754720468234,0.17635753,116790.0,116780.0,0.80370553]
[1754720468590,0.00511,116790.0,116780.0,0.66758553]
[1754720468802,0.00511,116790.0,116780.0,0.80362553]
[1754720470828,0.00511,116790.0,116780.0,0.80358553]
[1754720471245,0.00511,116790.0,116780.0,0.66758553]
[1754720471455,0.00511,116790.0,116780.0,0.80358553]
[1754720472290,0.00511,116790.0,116780.0,0.66758553]
[1754720472490,0.00511,116790.0,116780.0,0.80354553]
[1754720473838,0.00511,116790.0,116780.0,0.38078721]
[1754720474063,0.00511,116790.0,116780.0,0.80354553]
[1754720474279,0.00511,116790.0,116780.0,0.38078721]
[1754720474503,0.17635753,116790.0,116780.0,0.80354553]
[1754720474941,0.00511,116790.0,116780.0,0.80354553]
[1754720475779,0.00511,116790.0,116780.0,0.80338553]
[1754720476740,0.00511,116790.0,116780.0,0.66758553]
[1754720476958,0.00511,116790.0,116780.0,0.80334553]
[1754720477162,0.00511,116790.0,116780.0,0.38058721]
[1754720477364,0.00511,116790.0,116780.0,0.80334553]
[1754720483983,0.00511,116790.0,116780.0,0.38058721]
[1754720484186,0.00511,116790.0,116780.0,0.80334553]
[1754720486476,0.00511,116790.0,116780.0,0.38058721]
[1754720486680,0.00511,116790.0,116780.0,0.80334553]
[1754720487490,0.00511,116790.0,116780.0,0.38058721]
[1754720487688,0.00511,116790.0,116780.0,0.80334553]
[1754720490355,0.00511,116790.0,116780.0,0.38058721]
[1754720490758,0.00511,116790.0,116780.0,0.80334553]
[1754720492637,0.00511,116790.0,116780.0,0.38058721]
[1754720492841,0.00511,116790.0,116780.0,0.80334553]
[1754720493676,0.00511,116790.0,116780.0,0.91116343]
[1754720499662,0.00511,116790.0,116780.0,0.48840511]
[1754720499892,0.00511,116790.0,116780.0,0.91116343]
[1754720501642,0.00304,116790.0,116780.0,0.91116343]
[1754720501852,0.19742814,116810.0,116800.0,0.17123287]
[1754720502049,0.28631025,116810.0,116800.0,0.34111985]
[1754720502291,0.28631025,116810.0,116800.0,0.16988698]
[1754720502590,0.28940025,116810.0,116800.0,0.16988698]
[1754720503219,0.29240025,116810.0,116800.0,0.16988698]
[1754720504968,0.29340025,116810.0,116800.0,0.16988698]
[1754720516433,0.17123287,116800.0,116790.0,0.06947762]
[1754720516645,0.17334287,116800.0,116790.0,0.37632515]
[1754720516827,0.17627287,116800.0,116790.0,0.69316051]
[1754720517465,0.17627287,116800.0,116790.0,0.37632515]
[1754720517610,0.17627287,116800.0,116790.0,0.69316051]
[1754720517842,0.17727287,116800.0,116790.0,0.7364461]
[1754720518833,0.17727287,116800.0,116790.0,0.41961074]
[1754720520300,0.17727287,116800.0,116790.0,0.24836321]
[1754720520513,0.70401648,116800.0,116790.0,0.1356]
[1754720521390,0.621584,116800.0,116790.0,0.1356]
[1754720521809,1.04401648,116800.0,116790.0,0.1356]
[1754720527133,1.03897648,116800.0,116790.0,0.1356]
[1754720527343,0.647302,116800.0,116790.0,0.1356]
[1754720530619,1.06973448,116800.0,116790.0,0.1356]
[1754720531587,0.647302,116800.0,116790.0,0.1356]
[1754720531825,1.06973448,116800.0,116790.0,0.1356]
[1754720532035,1.06973448,116800.0,116790.0,0.14916]
[1754720532244,0.647302,116800.0,116790.0,0.14916]
[1754720533283,0.647302,116800.0,116790.0,0.1356]
[1754720533704,0.647302,116800.0,116790.0,0.20507762]
[1754720534094,0.619474,116800.0,116790.0,0.20507762]
[1754720534776,0.619474,116800.0,116790.0,0.37632515]
[1754720537461,0.279474,116800.0,116790.0,0.37632515]
[1754720537681,0.279474,116800.0,116790.0,0.4631194]
[1754720539068,0.279474,116800.0,116790.0,0.88555188]
[1754720539296,0.276544,116800.0,116790.0,0.4631194]
[1754720539758,0.279474,116800.0,116790.0,0.4631194]
[1754720540919,0.279474,116800.0,116790.0,0.7799427]
[1754720542769,0.19261189,116800.0,116790.0,0.7799427]
[1754720544502,0.18968189,116800.0,116790.0,0.7799427]
[1754720545148,0.19284189,116800.0,116790.0,0.7799427]
[1754720546246,0.19284189,116800.0,116790.0,0.71046508]
[1754720548493,0.001,116800.0,116790.0,0.71046508]
[1754720550477,0.001,116800.0,116790.0,0.39364178]
[1754720550691,0.001,116800.0,116790.0,0.71046508]
[1754720551709,0.001,116800.0,116790.0,0.39364178]
[1754720551932,0.001,116800.0,116790.0,0.71046508]
[1754720554850,0.00416,116800.0,116790.0,0.71046508]
[1754720555978,0.001,116800.0,116790.0,0.71046508]
[1754720559111,0.00416,116800.0,116790.0,0.71046508]
[1754720561799,0.00416,116800.0,116790.0,0.39364178]
[1754720562006,0.00416,116800.0,116790.0,0.71046508]
[1754720563556,0.00416,116800.0,116790.0,0.39364178]
[1754720563763,0.00416,116800.0,116790.0,0.71046508]
[1754720564777,0.00416,116800.0,116790.0,0.4631194]
[1754720564977,0.00416,116800.0,116790.0,0.7799427]
[1754720565385,0.00416,116800.0,116790.0,0.4631194]
[1754720565582,0.00416,116800.0,116790.0,0.7799427]
[1754720568785,0.17539287,116800.0,116790.0,0.7799427]
[1754720568913,0.17539287,116800.0,116790.0,0.71046508]
[1754720570560,0.00416,116800.0,116790.0,0.71046508]
[1754720571589,0.17539287,116800.0,116790.0,0.71046508]
[1754720572114,0.17736287,116800.0,116790.0,0.71046508]
[1754720572290,0.17736287,116800.0,116790.0,0.39364178]
[1754720572494,0.17736287,116800.0,116790.0,0.71046508]
[1754720574641,0.17736287,116800.0,116790.0,0.39364178]
[1754720574846,0.17736287,116800.0,116790.0,0.71046508]
[1754720584222,0.17736287,116800.0,116790.0,0.39364178]
[1754720584425,0.17736287,116800.0,116790.0,0.71046508]
[1754720584632,0.17736287,116800.0,116790.0,0.53921755]
[1754720587213,0.17124753,116790.0,116780.0,0.1078179]
[1754720587414,0.1712622,116780.0,116770.0,0.70809181]
[1754720587555,0.1732322,116780.0,116770.0,0.84325181]
[1754720587756,0.1762522,116780.0,116770.0,0.66341245]
[1754720587950,0.1762522,116780.0,116770.0,0.34658915]
[1754720588218,0.1762522,116780.0,116770.0,0.55559455]
[1754720588629,0.1772522,116780.0,116770.0,0.55559455]
[1754720589423,0.1762522,116780.0,116770.0,0.23037539]
[1754720589648,0.1762522,116780.0,116770.0,0.54719869]
[1754720589851,0.1792522,116780.0,116770.0,0.54719869]
[1754720590054,0.1792522,116780.0,116770.0,0.09521539]
[1754720590258,0.1792522,116780.0,116770.0,0.27239572]
[1754720590478,0.1802522,116780.0,116770.0,0.27239572]
[1754720591087,0.1802522,116780.0,116770.0,0.58921902]
[1754720591504,0.1802522,116780.0,116770.0,0.27239572]
[1754720591727,0.1802522,116780.0,116770.0,0.58921902]
[1754720592747,0.1802522,116780.0,116770.0,0.54715869]
[1754720594865,0.1802522,116780.0,116770.0,0.23033539]
[1754720595067,0.1802522,116780.0,116770.0,0.54715869]
[1754720597176,0.1752622,116780.0,116770.0,0.54715869]
[1754720598077,0.1782822,116780.0,116770.0,0.54715869]
[1754720598541,0.1782822,116780.0,116770.0,0.31712964]
[1754720598699,0.1802522,116780.0,116770.0,0.54715869]
[1754720601010,0.1802522,116780.0,116770.0,0.23033539]
[1754720601213,0.1802522,116780.0,116770.0,0.54715869]
[1754720602698,0.1802522,116780.0,116770.0,0.23033539]
[1754720603037,0.1802522,116780.0,116770.0,0.54715869]
[1754720603871,0.1802522,116780.0,116770.0,0.63395294]
[1754720605075,0.1802522,116780.0,116770.0,0.31712964]
[1754720605306,0.1802522,116780.0,116770.0,0.63395294]
[1754720605468,0.1802522,116780.0,116770.0,0.31712964]
[1754720605688,0.1802522,116780.0,116770.0,0.54715869]
[1754720609603,0.1802522,116780.0,116770.0,0.23033539]
[1754720609890,0.1802522,116780.0,116770.0,0.54715869]
[1754720610335,0.1802522,116780.0,116770.0,0.23033539]
[1754720610503,0.1802522,116780.0,116770.0,0.54715869]
[1754720610731,0.1802522,116780.0,116770.0,0.63395294]
[1754720619642,0.1802522,116780.0,116770.0,0.8052298]
[1754720619877,0.004,116780.0,116770.0,1.1220531]
[1754720620576,0.004,116780.0,116770.0,0.8052298]
[1754720622698,0.004,116780.0,116770.0,1.1220531]
[1754720623531,0.003,116780.0,116770.0,1.1220531]
[1754720623754,0.19724353,116800.0,116790.0,0.17124753]
[1754720623962,0.19724353,116800.0,116790.0,0.64346771]
[1754720624148,0.20047353,116800.0,116790.0,0.64346771]
[1754720624559,0.20047353,116800.0,116790.0,0.32664441]
[1754720624814,0.20047353,116800.0,116790.0,0.64346771]
[1754720625086,0.20047353,116800.0,116790.0,0.32664441]
[1754720625330,0.20047353,116800.0,116790.0,0.64346771]
[1754720625541,0.20569412,116810.0,116790.0,0.64346771]
[1754720625708,0.003,116800.0,116790.0,0.19176441]
[1754720625912,0.003,116800.0,116790.0,0.64342771]
[1754720626343,0.001,116800.0,116790.0,0.64342771]
[1754720626595,0.29578623,116810.0,116790.0,0.64342771]
[1754720626846,0.31623525,116810.0,116800.0,0.4516633]
[1754720627112,0.31820525,116810.0,116800.0,0.51600607]
[1754720627383,0.31820525,116810.0,116800.0,0.19918277]
[1754720628109,0.31620525,116810.0,116800.0,0.19918277]
[1754720628368,0.31520525,116810.0,116800.0,0.19918277]
[1754720628627,0.31720525,116810.0,116800.0,0.19918277]
[1754720629125,0.32020525,116810.0,116800.0,0.19918277]
[1754720630616,0.32020525,116810.0,116800.0,0.20784294]
[1754720631378,0.63702855,116810.0,116800.0,0.19918277]
[1754720631600,0.63702855,116810.0,116800.0,0.13484]
[1754720631817,0.32020525,116810.0,116800.0,0.13484]
[1754720632020,0.63702855,116810.0,116800.0,0.13484]
[1754720635195,0.63702855,116810.0,116800.0,0.14361926]
[1754720638761,0.32020525,116810.0,116800.0,0.14361926]
[1754720638989,0.63702855,116810.0,116800.0,0.21578772]
[1754720643261,0.32020525,116810.0,116800.0,0.21578772]
[1754720643432,0.63702855,116810.0,116800.0,0.21578772]
[1754720644813,0.32020525,116810.0,116800.0,0.21578772]
[1754720645011,0.63702855,116810.0,116800.0,0.21578772]
[1754720645796,0.63702855,116810.0,116800.0,0.20700846]
[1754720646371,0.63702855,116810.0,116800.0,0.13484]
[1754720647736,0.32020525,116810.0,116800.0,0.13484]
[1754720647949,0.63702855,116810.0,116800.0,0.13484]
[1754720653498,0.63702855,116810.0,116790.0,0.0899945]
[1754720653499,0.17123287,116800.0,116790.0,0.06947762]
[1754720653698,0.17123287,116800.0,116790.0,0.20407762]
[1754720653699,0.5923673,116800.0,116790.0,0.20407762]
[1754720653875,0.5975273,116800.0,116790.0,0.20407762]
[1754720654084,0.30642,116800.0,116790.0,0.20407762]
[1754720654288,0.6232433,116800.0,116790.0,0.20407762]
[1754720654699,0.6242433,116800.0,116790.0,0.20407762]
[1754720655934,0.6262433,116800.0,116790.0,0.20407762]
[1754720659889,0.6262433,116800.0,116790.0,0.1346]
[1754720662528,0.18871122,116780.0,116770.0,0.1078179]
[1754720662744,0.27756333,116780.0,116770.0,0.2423379]
[1754720663014,0.27756333,116780.0,116770.0,0.13452]
[1754720663221,0.28080333,116780.0,116770.0,0.13452]
[1754720663656,0.30652433,116780.0,116770.0,0.13452]
[1754720664299,0.62334763,116780.0,116770.0,0.14304479]
[1754720665040,0.62434763,116780.0,116770.0,0.14304479]
[1754720665661,0.62434763,116780.0,116770.0,0.13452]
[1754720666070,0.62434763,116780.0,116770.0,0.17965433]
[1754720666666,0.62434763,116780.0,116770.0,0.13452]
[1754720667296,0.30752433,116780.0,116770.0,0.13452]
[1754720667496,0.62434763,116780.0,116770.0,0.13452]
[1754720681323,0.1713062,116750.0,116740.0,0.1078179]
[1754720681580,0.1713062,116750.0,116740.0,0.24261148]
[1754720681888,0.1745462,116750.0,116740.0,0.13479358]
[1754720682142,0.1745462,116750.0,116740.0,0.21739037]
[1754720682358,0.1745462,116750.0,116740.0,0.13479358]
[1754720682789,0.1745462,116750.0,116740.0,0.14351002]
[1754720684040,0.17405645,116750.0,116740.0,0.14351002]
[1754720684251,0.17505645,116750.0,116740.0,0.14351002]
[1754720684457,0.17605645,116750.0,116740.0,0.6316542]